[Event "German Bundesliga 2024-25"]
[Site "Germany"]
[Date "2025.01.11"]
[Round "5.6"]
[White "Lampert, Jonas"]
[Black "Hausrath, Daniel"]
[Result "1-0"]
[Annotator "TA"]
[ECO "B07"]
[WhiteElo "2526"]
[BlackElo "2455"]
[PlyCount "113"]
[EventDate "2024.09.27"]
[EventType "team-tourn"]
[EventCountry "GER"]
[SourceTitle "playchess.com"]
[Source "ChessBase"]
[SourceQuality "1"]
[WhiteTeam "Hamburg"]
[BlackTeam "Muelheim Nord"]
[TimeControl "40/5400+30:1800+30"]

{[%evp 37,113,168,180,173,216,229,218,227,226,222,254,236,317,179,187,195,197,191,169,147,187,168,257,238,230,211,294,276,272,207,295,299,275,242,271,163,255,283,331,314,325,306,342,291,378,366,380,203,203,203,245,131,460,118,463,463,456,456,456,339,1173,933,861,859,849,827,788,782,1696,1716,1378,1186,12232,8358,1944,1952,1123,1043]} 1. d4 {[%emt 2:20:56]} d6 {[%emt 0:00:20]} 2. e4 {[%emt 0:00:11]} Nf6 {[%emt 0:00:07]} 3. Nc3 {[%emt 0:00:13]} e5 {[%emt 0:00:13]} 4. dxe5 {[%emt 0:00:27]} dxe5 {[%emt 0:00:10]} 5. Qxd8+ {[%emt 0:00:04]} Kxd8 {[%emt 0:00:07]} 6. Bc4 {[%emt 0:00:06]} Be6 {[%emt 0:02:40]} 7. Bxe6 {[%emt 0:00:11]} fxe6 {[%emt 0:00:04]} 8. f3 {[%emt 0:00:44]} Bd6 {[%emt 0:02:01]} 9. Nh3 {[%emt 0:01:10]} Ke7 {[%emt 0:02:05]} 10. Nf2 {[%emt 0:02:50]} a6 {[%emt 0:07:14]} 11. Be3 {[%emt 0:00:15]} Nbd7 {[%emt 0:05:05]} 12. Nb1 {[%emt 0:01:10]} b5 {[%emt 0:15:44]} 13. Nd2 {[%emt 0:00:23]} Rhb8 {[%emt 0:00:10]} 14. Ke2 {[%emt 0:03:42]} Nb6 {[%emt 0:14:06]} 15. b3 {[%emt 0:35:21]} Bb4 {[%emt 0:14:56]} 16. c3 {[%emt 0:17:47]} Bxc3 {[%emt 0:05:07]} 17. Rac1 {[%emt 0:00:04]} Bxd2 {[%emt 0:00:18]} 18. Kxd2 {[%emt 0:00:22]} Ne8 {[%emt 0:01:58]} 19. Nd3 {[%emt 0:00:29]} Nd7 {[%emt 0:04:02]} 20. Nb4 $1 {[%emt 0:08:56]} Rc8 {[%emt 0:01:15]} 21. Nc6+ {[%emt 0:00:13]} Kf6 {[%emt 0:01:41]} 22. g4 {[%emt 0:05:07]} Nd6 {[%emt 0:10:04]} 23. Ke2 {[%emt 0:00:05]} h6 {[%emt 0:04:33]} 24. h4 {[%emt 0:01:09]} (24. Na7 $6 Rxa7 25. Bxa7 c5 $18) 24... Nf7 {[%emt 0:00:59]} 25. Na7 {[%emt 0:08:08]} (25. g5+ $142 hxg5 26. hxg5+ Nxg5 27. Rcf1) 25... Rxa7 $18 {[%emt 0:01:56]} 26. Bxa7 {[%emt 0:00:02]} c5 {[%emt 0:00:05]} 27. b4 $1 {[%emt 0:00:43]} c4 {[%emt 0:00:06]} 28. Rhd1 {[%emt 0:01:47]} Rc7 {[%emt 0:00:57]} 29. Be3 {[%emt 0:00:35]} Nf8 {[%emt 0:01:43]} (29... Ke7 30. Rc3 Nd8) 30. h5 $18 {[%emt 0:03:37]} Nd7 {[%emt 0:00:56]} 31. Rc2 {[%emt 0:01:21]} Ke7 {[%emt 0:03:17]} 32. a4 {[%emt 0:01:40]} Nd8 {[%emt 0:00:15]} 33. axb5 {[%emt 0:01:58]} axb5 {[%emt 0:00:02]} 34. g5 {[%emt 0:00:06]} Nc6 {[%emt 0:00:08]} 35. gxh6 {[%emt 0:03:35]} gxh6 {[%emt 0:00:02]} 36. Rcc1 {[%emt 0:03:21]} (36. Bxh6 Nd4+ 37. Kd2 Ra7 $16) 36... Nxb4 {[%emt 0:01:24]} (36... Nf6 {keeps fighting.}) 37. Bxh6 $18 {[%emt 0:00:03]} Nd3 {[%emt 0:01:40]} 38. Rb1 {[%emt 0:00:57]} b4 {[%emt 0:00:34]} 39. Bd2 {[%emt 0:00:28]} b3 {[%emt 0:01:07]} 40. h6 {[%emt 0:00:45]} Nf6 {[%emt 0:00:33]} 41. Rg1 {[%emt 0:09:22]} Kd6 {[%emt 0:02:50] [#]} 42. Rxb3 {[%emt 0:03:55]} (42. Rg7 $142 $3 {[%mdl 512]}) 42... cxb3 $18 {[%emt 0:18:15]} 43. Kxd3 {[%emt 0:00:03]} Rb7 {[%emt 0:00:11]} 44. Rb1 {[%emt 0:01:36]} (44. Kc3 $18) 44... Nd7 $2 {[%emt 0:05:29][%mdl 8192]} (44... Ke7 $16 {is more resistant.} 45. Kc4 Nd7) 45. Kc4 $2 {[%emt 0:04:00]} (45. h7 $18 {is the precise move to win.} Rb8 (45... Nc5+ $2 46. Kc4 $18) 46. Bb4+ Kc6 47. Rh1 (47. Rxb3 Nc5+ 48. Bxc5 Rxb3+ 49. Kc4 Rb8 $11)) 45... Rc7+ $2 {[%emt 0:02:26][%mdl 8192]} (45... Ke7 $16 46. Rxb3 Rc7+ 47. Kb4 Kf6) 46. Kxb3 $18 {[%emt 0:00:38]} Nc5+ {[%emt 0:00:05]} 47. Ka3 {[%emt 0:00:49]} Rf7 {[%emt 0:02:07]} 48. Rf1 {[%emt 0:08:41]} Nxe4 $2 {[%emt 0:00:24] [#]} (48... Nd3 49. Kb3 Nc5+ 50. Kc4 Nb7) 49. Bb4+ $1 $18 {[%emt 0:00:27]} Nc5 {[%emt 0:01:53]} 50. Rc1 {[%emt 0:01:47]} Ra7+ {[%emt 0:00:46]} 51. Kb2 {[%emt 0:00:02]} Rb7 {[%emt 0:00:01]} 52. Rc4 {[%emt 0:01:36]} Kd5 {[%emt 0:00:57]} 53. Rxc5+ {[%emt 0:00:13]} Kd4 54. Kb3 {[%emt 0:00:21]} Rh7 {[%emt 0:00:14]} 55. Rc4+ {[%emt 0:01:11]} Ke3 {[%emt 0:00:06]} 56. Rc3+ {[%emt 0:00:17]} Kf4 {[%emt 0:00:58]} 57. Bf8 {[%emt 0:00:08]} 1-0

[Event "German Bundesliga 2024-25"]
[Site "Germany"]
[Date "2025.01.11"]
[Round "5.6"]
[White "Ikonnikov, Vyacheslav"]
[Black "Lokander, Martin"]
[Result "1/2-1/2"]
[Annotator "TA"]
[ECO "D85"]
[WhiteElo "2465"]
[BlackElo "2467"]
[PlyCount "72"]
[EventDate "2024.09.27"]
[EventType "team-tourn"]
[EventCountry "GER"]
[SourceTitle "playchess.com"]
[Source "ChessBase"]
[SourceQuality "1"]
[WhiteTeam "Bad Mergentheim"]
[BlackTeam "Bayern Muenchen"]
[TimeControl "40/5400+30:1800+30"]

{[%evp 19,72,0,0,0,0,0,0,0,0,0,0,0,0,0,0,0,0,0,27,21,28,16,28,33,20,8,12,-9,0,0,0,0,0,0,0,0,0,-8,0,-11,-8,-8,-8,-14,0,0,0,0,0,0,1,0,0,0,0]} 1. d4 {[%emt 0:00:06]} Nf6 {[%emt 0:00:10]} 2. Nf3 {[%emt 0:00:15]} g6 {[%emt 0:00:08]} 3. c4 {[%emt 0:00:22]} Bg7 {[%emt 0:00:06]} 4. Nc3 {[%emt 0:00:18]} d5 {[%emt 0:00:07]} 5. cxd5 {[%emt 0:00:47]} Nxd5 {[%emt 0:00:06]} 6. e4 {[%emt 0:00:29]} Nxc3 {[%emt 0:00:05]} 7. bxc3 {[%emt 0:00:07]} c5 {[%emt 0:00:04]} 8. Bb5+ {[%emt 0:02:29]} Nc6 {[%emt 0:00:25]} 9. O-O {[%emt 0:00:11]} O-O {[%emt 0:00:20]} 10. Bxc6 {[%emt 0:00:28]} bxc6 {[%emt 0:00:04]} 11. Qc2 {[%emt 0:00:03]} cxd4 {[%emt 0:00:58]} 12. cxd4 {[%emt 0:00:06][%cal Oc1e3]} Bg4 {[%emt 0:00:13]} 13. Ne5 {[%emt 0:00:25]} Qxd4 {[%emt 0:00:27]} 14. Bb2 {[%emt 0:00:07][%cal Bc1b2,Bb2e5,Be5c3][%mdl 32]} Qb6 {[%emt 0:00:34]} 15. Rab1 {[%emt 0:00:21]} Bxe5 $1 {[%emt 0:00:25]} 16. Bxe5 {[%emt 0:00:11]} Qa5 {[%emt 0:00:58]} 17. Bc3 {[%emt 0:00:46]} Qc5 {[%emt 0:00:04]} 18. h3 {[%emt 0:01:07]} Be2 {[%emt 0:04:16]} 19. Rfc1 {[%emt 0:02:20][%mdl 1024] White has compensation.} (19. Qxe2 Qxc3 20. Rfc1 Qe5 $11) 19... Ba6 {[%emt 0:02:11]} 20. Qd2 {[%emt 0:04:23]} Qd6 {[%emt 0:05:16]} 21. Qh6 {[%emt 0:27:07][%csl Gc3][%cal Rh6g7]} f6 {[%emt 0:00:46] [#]} 22. e5 $1 {[%emt 0:00:25]} fxe5 {[%emt 0:05:56]} 23. Re1 {[%emt 0:00:27]} (23. Qe3 e4 24. Bd4 Bb5 25. Bc5) 23... Rf5 {[%emt 0:01:44]} 24. g4 {[%emt 0:18:44]} Rf7 $1 {[%emt 0:01:21]} 25. Bxe5 {[%emt 0:00:06]} ({Reject} 25. Rxe5 Raf8 26. Re3 c5 $15) 25... Qd5 {[%emt 0:01:55][%cal Oa6f1]} 26. Rbd1 {[%emt 0:08:28] Really sharp!} Qxa2 {[%emt 0:16:36]} 27. Qe3 {[%emt 0:01:13] and Bc3 should not be overlooked} Raf8 {[%emt 0:09:53][%cal Rf7f2]} 28. Ra1 {[%emt 0:00:47]} Qc4 {[%emt 0:00:45]} 29. Rec1 {[%emt 0:01:17]} Qe2 {[%emt 0:02:38]} 30. Qxe2 {[%emt 0:08:11]} (30. Bd4 {is interesting.} Bd3 31. Qxe2 Bxe2 32. Rxa7 Rd8 33. Bb6) 30... Bxe2 {[%emt 0:00:15]} 31. Rxa7 {[%emt 0:00:18]} Rxf2 {[%emt 0:00:20]} 32. Rxe7 {[%emt 0:00:28]} R2f7 {[%emt 0:01:00]} 33. Rxf7 {[%emt 0:01:04]} Kxf7 {[%emt 0:00:09]} 34. Rxc6 {[%emt 0:00:14]} Re8 {[%emt 0:00:08]} 35. Rc7+ {[%emt 0:00:33]} Re7 {[%emt 0:00:06]} 36. Rxe7+ {[%emt 0:00:12]} Kxe7 {[%emt 0:00:03]} 1/2-1/2

[Event "German Bundesliga 2024-25"]
[Site "Germany"]
[Date "2025.01.11"]
[Round "5.7"]
[White "Girel, Joseph"]
[Black "Neuman, Petr"]
[Result "1/2-1/2"]
[Annotator "TA"]
[ECO "D94"]
[WhiteElo "2486"]
[BlackElo "2426"]
[PlyCount "44"]
[EventDate "2024.09.27"]
[EventType "team-tourn"]
[EventCountry "GER"]
[SourceTitle "playchess.com"]
[Source "ChessBase"]
[SourceQuality "1"]
[WhiteTeam "Bayern Muenchen"]
[BlackTeam "Bad Mergentheim"]
[TimeControl "40/5400+30:1800+30"]

{[%evp 27,44,37,31,17,33,19,17,16,20,0,0,0,0,0,0,0,0,0,20]} 1. d4 {[%emt 0:00:34]} d5 {[%emt 0:00:10]} 2. c4 {[%emt 0:00:21]} c6 {[%emt 0:00:08]} 3. Nf3 {[%emt 0:00:44]} Nf6 {[%emt 0:01:13]} 4. e3 {[%emt 0:00:44]} g6 {[%emt 0:01:12]} 5. Nc3 {[%emt 0:01:05]} Bg7 {[%emt 0:00:12]} 6. Be2 {[%emt 0:00:08]} O-O {[%emt 0:00:06]} 7. O-O {[%emt 0:00:09]} dxc4 {[%emt 0:00:38]} 8. Bxc4 {[%emt 0:03:24]} Bg4 {[%emt 0:02:21]} 9. h3 {[%emt 0:04:03]} Bxf3 {[%emt 0:01:01]} 10. Qxf3 {[%emt 0:00:11]} Nbd7 {[%emt 0:00:06]} 11. Rd1 {[%emt 0:05:29]} e5 {[%emt 0:00:28]} 12. d5 {[%emt 0:16:03]} e4 {[%emt 0:02:20]} 13. Nxe4 {[%emt 0:07:30]} Nxe4 {[%emt 0:00:27]} 14. Qxe4 {[%emt 0:01:44]} Nb6 {[%emt 0:00:32]} 15. Bb3 {[%emt 0:07:30]} cxd5 {[%emt 0:23:13]} 16. Qd3 {[%emt 0:10:40][%cal Oe3e4]} Qe7 {[%emt 0:03:27]} 17. Rb1 {[%emt 0:01:13][%cal Oc1d2]} Rac8 {[%emt 0:04:01]} 18. Qb5 {[%emt 0:05:17][%cal Oc1d2]} Rc5 {[%emt 0:17:49]} 19. Qb4 {[%emt 0:02:56][%cal Oe3e4]} Rfc8 {[%emt 0:01:03]} 20. Bd2 {[%emt 0:02:59]} Nc4 {[%emt 0:03:23]} 21. Bxc4 $1 {[%emt 0:01:36]} dxc4 {[%emt 0:00:09]} 22. Bc3 {[%emt 0:00:23]} R5c7 {[%emt 0:04:29]} (22... Qe4 $5) 1/2-1/2

[Event "German Bundesliga 2024-25"]
[Site "Germany"]
[Date "2025.01.11"]
[Round "5.7"]
[White "Krastev, Alexander"]
[Black "Nielsen, Peter Heine"]
[Result "0-1"]
[Annotator "TA"]
[ECO "B06"]
[WhiteElo "2425"]
[BlackElo "2618"]
[PlyCount "54"]
[EventDate "2024.09.27"]
[EventType "team-tourn"]
[EventCountry "GER"]
[SourceTitle "playchess.com"]
[Source "ChessBase"]
[SourceQuality "1"]
[WhiteTeam "SG Solingen"]
[BlackTeam "St. Pauli"]
[TimeControl "40/5400+30:1800+30"]

{[%evp 9,54,28,22,33,15,27,32,17,27,22,24,22,31,15,28,16,18,13,25,17,20,0,42,42,30,32,32,0,25,-80,-98,-219,-220,-208,-61,-66,-43,-279,-168,-446,-441,-437,-434,-645,-648,-1569,-1562]} 1. e4 {[%emt 0:00:03]} c5 {[%emt 0:00:08]} 2. Nf3 {[%emt 0:00:09]} g6 {[%emt 0:00:08]} 3. c3 {[%emt 0:00:43]} d5 {[%emt 0:00:44]} 4. exd5 {[%emt 0:00:20]} Qxd5 {[%emt 0:00:12]} 5. d4 {[%emt 0:00:04]} Bg7 {[%emt 0:00:50]} 6. Nbd2 {[%emt 0:00:28]} cxd4 {[%emt 0:00:49]} 7. Bc4 {[%emt 0:00:39]} Qd8 {[%emt 0:00:57]} 8. Nxd4 {[%emt 0:01:41]} Nf6 {[%emt 0:00:54]} 9. O-O {[%emt 0:01:56]} O-O {[%emt 0:00:10]} 10. N2f3 {[%emt 0:10:30]} Qc7 {[%emt 0:04:12]} 11. Qe2 {[%emt 0:08:04]} Nc6 {[%emt 0:16:07]} 12. Nxc6 {[%emt 0:05:30]} bxc6 {[%emt 0:06:03]} 13. Re1 {[%emt 0:09:17]} e6 {[%emt 0:07:13]} 14. Ne5 {[%emt 0:39:11]} Nd5 {[%emt 0:12:47][%cal Bf6d5,Bd5e7,Be7f5,Bf5d4][%mdl 32]} 15. h4 {[%emt 0:01:23][%cal Bh2h4,Bh4h5,Bh5h6][%mdl 32]} c5 {[%emt 0:13:01]} 16. h5 {[%emt 0:15:01]} Bb7 {[%emt 0:01:52]} 17. h6 {[%emt 0:00:06]} Bh8 {[%emt 0:01:19]} 18. Bb3 {[%emt 0:00:37]} Rad8 {[%emt 0:03:34]} 19. c4 {[%emt 0:00:13]} (19. Rb1 $11 {remains equal.}) 19... Ne7 $1 $17 {[%emt 0:05:05]} 20. Bf4 {[%emt 0:00:03] [#]} (20. Bc2 $17) 20... Rd4 $1 $19 {[%emt 0:04:59]} 21. Bh2 {[%emt 0:03:08][%cal Oe5g6] [#] Black must now prevent Nxg6!.} Qd8 {[%emt 0:04:37]} (21... Re4 $1 $19 {[%cal Re4e2]} 22. Nf3 Qb6) 22. Rad1 $15 {[%emt 0:00:45]} Nf5 $1 {[%emt 0:01:56][%cal Od8g5]} 23. Ng4 $2 {[%emt 0:01:37]} (23. Rxd4 $1 $15 Nxd4 24. Qe3) 23... Qh4 $40 {[%emt 0:02:28][%mdl 128] Black goes for the king.} 24. Rxd4 $2 {[%emt 0:00:27]} (24. Ne5) 24... Nxd4 $19 {[%emt 0:00:47]} ({Inferior is} 24... cxd4 25. c5 Rd8 (25... Nxh6 26. Nxh6+ Qxh6 27. Qb5 $16) (25... d3 26. Qxe6 Qd8 27. Qc4 $14) 26. Bc7 $11) (24... Bxd4 $2 25. Bc2 $19) 25. Qd1 {[%emt 0:00:25]} f5 {[%emt 0:02:05]} 26. Ne5 {[%emt 0:00:30]} (26. Ne3 $142) 26... Qg5 {[%emt 0:02:40][%csl Gb7][%cal Rg5g2]} 27. f3 {[%emt 0:00:04]} Bxe5 {[%emt 0:00:43]} 0-1

[Event "German Bundesliga 2024-25"]
[Site "Germany"]
[Date "2025.01.11"]
[Round "5.7"]
[White "Dinstuhl, Volkmar"]
[Black "Costa, Leonardo"]
[Result "1/2-1/2"]
[Annotator "TA"]
[ECO "A13"]
[WhiteElo "2380"]
[BlackElo "2501"]
[PlyCount "137"]
[EventDate "2024.09.27"]
[EventType "team-tourn"]
[EventCountry "GER"]
[SourceTitle "playchess.com"]
[Source "ChessBase"]
[SourceQuality "1"]
[WhiteTeam "Muelheim Nord"]
[BlackTeam "Hamburg"]
[TimeControl "40/5400+30:1800+30"]

{[%evp 94,137,72,72,70,70,70,71,74,0,0,0,0,0,0,0,0,0,0,0,0,0,29954,12799,29972,485,485,485,477,477,470,340,470,463,447,447,400,225,379,72,72,0,374,0,133,0]} 1. b3 {[%emt 0:43:09]} Nf6 {[%emt 0:00:14]} 2. Bb2 {[%emt 0:00:05]} d5 {[%emt 0:00:03]} 3. Nf3 {[%emt 0:02:08]} e6 {[%emt 0:01:21]} 4. c4 {[%emt 0:04:48]} Be7 {[%emt 0:02:12]} 5. e3 {[%emt 0:01:32]} O-O {[%emt 0:00:07]} 6. Be2 {[%emt 0:03:46]} c5 {[%emt 0:04:31]} 7. O-O {[%emt 0:01:16]} dxc4 {[%emt 0:01:52]} 8. bxc4 {[%emt 0:00:59]} b6 {[%emt 0:00:21]} 9. d3 {[%emt 0:04:35]} Bb7 {[%emt 0:00:08]} 10. Nbd2 {[%emt 0:03:42]} Nc6 {[%emt 0:00:12]} 11. Ne5 {[%emt 0:05:56]} Nxe5 {[%emt 0:11:59]} 12. Bxe5 {[%emt 0:00:11]} Nd7 {[%emt 0:00:02]} 13. Bb2 {[%emt 0:00:44]} Bf6 {[%emt 0:02:23]} 14. Bxf6 {[%emt 0:03:14]} Qxf6 {[%emt 0:00:16]} 15. Bf3 {[%emt 0:00:09]} Bxf3 {[%emt 0:02:57]} 16. Nxf3 {[%emt 0:00:23]} Rfd8 {[%emt 0:18:16]} 17. Qe2 {[%emt 0:05:31]} Nb8 {[%emt 0:01:07]} 18. Rab1 {[%emt 0:03:39]} Nc6 {[%emt 0:00:24]} 19. Rfc1 {[%emt 0:04:04]} h6 {[%emt 0:02:34]} 20. Rb3 {[%emt 0:07:42]} Rd7 {[%emt 0:00:47]} 21. h3 {[%emt 0:10:47]} Rad8 {[%emt 0:00:05]} 22. Ne1 {[%emt 0:04:53]} e5 {[%emt 0:14:35]} 23. a3 {[%emt 0:06:22]} Qe6 {[%emt 0:01:07]} 24. Qc2 {[%emt 0:15:03]} f5 {[%emt 0:04:01]} 25. Rc3 {[%emt 0:04:08]} Rd6 {[%emt 0:09:18]} 26. Qe2 {[%emt 0:02:13]} g6 {[%emt 0:09:13]} 27. Nf3 {[%emt 0:03:58]} e4 {[%emt 0:01:38]} 28. dxe4 {[%emt 0:00:02]} fxe4 {[%emt 0:00:04]} 29. Nh2 {[%emt 0:00:05]} Ne5 {[%emt 0:02:46]} 30. Nf1 {[%emt 0:00:44]} h5 {[%emt 0:01:15]} 31. Qc2 {[%emt 0:00:55]} Nd3 {[%emt 0:07:30]} 32. Rd1 {[%emt 0:00:03]} Kh7 {[%emt 0:02:22]} 33. f4 {[%emt 0:01:01]} a6 {[%emt 0:00:42]} 34. Rb1 {[%emt 0:00:33]} Rg8 {[%emt 0:00:28]} 35. Ng3 {[%emt 0:01:17]} h4 {[%emt 0:00:33]} 36. Ne2 {[%emt 0:00:01]} Qf6 {[%emt 0:00:38]} 37. Rf1 {[%emt 0:00:10]} b5 {[%emt 0:00:33]} 38. cxb5 {[%emt 0:00:05]} axb5 {[%emt 0:00:02]} 39. Rb3 {[%emt 0:00:05]} b4 {[%emt 0:00:43]} 40. axb4 {[%emt 0:00:22]} cxb4 {[%emt 0:00:30]} 41. Nd4 {[%emt 0:04:26]} Rg7 {[%emt 0:08:02]} 42. f5 {[%emt 0:03:10]} Rf7 {[%emt 0:14:01]} 43. Qc4 {[%emt 0:11:14]} Rdd7 {[%emt 0:00:24]} 44. Rbb1 {[%emt 0:01:36]} Qg5 {[%emt 0:02:47]} 45. fxg6+ {[%emt 0:10:18]} Qxg6 {[%emt 0:00:04]} 46. Ne6 {[%emt 0:01:52]} Ne5 {[%emt 0:00:11]} 47. Qa2 {[%emt 0:02:32]} b3 {[%emt 0:05:42] [#]} 48. Rxf7+ $1 {[%emt 0:00:45]} (48. Rxb3 Rxf1+ (48... Qxe6 $2 49. Rxf7+ Qxf7 50. Qb1 $19) 49. Kxf1 Rd1+ (49... Qxe6 $2 50. Qb1 $19) 50. Ke2 Qh5+ (50... Qxg2+ $2 51. Kxd1 Qxa2 52. Nc5 $19) 51. Kf2 Nd3+ 52. Rxd3 Qf7+ 53. Nf4 Qxa2+ 54. Ne2 Rxd3 (54... exd3 55. Kf3 dxe2 56. g3 e1=Q 57. Kg4 Qxg3+ 58. Kf5 Qf7+ 59. Ke4 Qfg6#) 55. g3 Qd2 (55... Qf7+ 56. Nf4 Qa2+ 57. Ne2 Qd2 58. Kf1 Rxe3 59. gxh4 Rxe2 60. h5 Re1#) 56. gxh4 Rxe3 (56... Qxe3+ 57. Ke1 Qf3 58. h5 e3 59. h4 Qf2#) 57. h5 Rxe2+ 58. Kg3 Qg5#) (48. Qxb3 $2 Nf3+ 49. Kh1 Rd2 $19) 48... Rxf7 {[%emt 0:00:41]} 49. Qxb3 {[%emt 0:00:03]} (49. Rxb3 $2 Nf3+ (49... Qxe6 $2 50. Qb2 $19) 50. Kh1 Qxe6 $19) 49... Qg3 {[%emt 0:01:58]} 50. Kh1 {[%emt 0:00:39]} Nf3 {[%emt 0:01:32]} 51. gxf3 {[%emt 0:00:06]} (51. Qb8 $1 $16 {[%cal Rb8g3] and Qxg3 should not be overlooked} Re7 52. Qxg3 hxg3 53. gxf3 Rxe6 54. f4) 51... Qxf3+ {[%emt 0:00:30]} 52. Kg1 {[%emt 0:00:09]} Qg3+ {[%emt 0:00:13]} 53. Kh1 {[%emt 0:00:05]} Qxh3+ {[%emt 0:00:03]} 54. Kg1 {[%emt 0:00:06]} Qg3+ {[%emt 0:01:14]} 55. Kh1 {[%emt 0:00:01]} Qh3+ {[%emt 0:00:38]} 56. Kg1 {[%emt 0:00:04]} Qg4+ {[%emt 0:00:27]} 57. Kh1 {[%emt 0:00:06]} Rf3 $2 {[%emt 0:00:11][%mdl 8192]} (57... Rf2 $11 58. Qb7+ Kh6 59. Qg7+ Qxg7 60. Nxg7 Kxg7) 58. Nf4 {[%emt 0:01:27]} Qd7 {[%emt 0:01:01]} 59. Qb7 {[%emt 0:01:35]} (59. Rg1 $2 Rh3+ 60. Kg2 Qg4+ 61. Kf2 Rf3+ 62. Ke2 Rg3+ (62... Qxg1 63. Qf7+ Qg7 64. Qh5+ Qh6 65. Qf5+ Kh8 66. Qc8+ Kg7 67. Qc7+ Kf8 68. Qc5+ Kf7 69. Qf5+ Qf6 70. Qd5+ Kf8 71. Qa8+ Kf7 72. Qd5+ Kf8 73. Qa8+ Kf7 74. Qd5+ $11) 63. Kd2 Qd7+ (63... Rxg1 64. Qb7+ Kh6 65. Qb6+ Kh7 66. Qb7+ Kh8 67. Qb8+ Qg8 68. Qe5+ Qg7 69. Qe8+ Kh7 70. Qxe4+ Kg8 71. Qa8+ Qf8 72. Qd5+ Qf7 73. Qd8+ Kg7 74. Qd4+ Kg8 75. Qd8+ Kg7 76. Qd4+ Kh7 77. Qd3+ Kg8 78. Qd8+ $11) 64. Nd5 Rxg1 $19) (59. Qb8 $142 Rh3+ 60. Nxh3 Qxh3+ 61. Qh2 Qf3+ 62. Qg2 Qf7 63. Qxe4+ Kg8 64. Qg2+ (64. Qxh4 Qf3+ 65. Kh2 Qe2+ 66. Kh3 Qxe3+ 67. Qg3+ Qxg3+ 68. Kxg3 Kf8) 64... Kf8 65. Rb8+ Ke7 66. Qg5+ (66. Rb7+ Kf8 $18) 66... Ke6 67. Rb6+ (67. Qxh4 Qf1+ 68. Kh2 Qe2+ 69. Kg1 Qxe3+ 70. Qf2 Qc1+ 71. Kg2 Qg5+ 72. Kf1 Qc1+ 73. Qe1+ Qxe1+ 74. Kxe1 Kd6) 67... Kd7 68. Rb7+ (68. Qxh4 Qf1+ 69. Kh2 Qe2+ 70. Kg1 Qd1+ 71. Kf2 Qc2+ 72. Kf3 Qd1+ 73. Kf4 Qd5 $18) 68... Ke6 69. Qg4+ (69. Rxf7 Kxf7 70. Qe5 Kg6 71. Kh2 Kh6 72. Kh3 Kh7 73. Qg5 Kh8 74. Kxh4 Kh7 75. Kh5 Kh8 76. Kg6 Kg8 77. Qd8#) 69... Ke5 70. Qd4+ (70. Rxf7 Kd5 71. Rf5+ Kd6 72. Qg6+ Ke7 73. Rf7+ Ke8 74. Qg8#) 70... Kf5 71. Rxf7+ Ke6 72. Rf6+ Ke7 73. Qd6+ Ke8 74. Rf8#) 59... Qxb7 $18 {[%emt 0:00:03]} 60. Rxb7+ {[%emt 0:00:01]} Kh6 {[%emt 0:00:04]} 61. Nd5 {[%emt 0:00:26]} Kg5 {[%emt 0:00:20]} 62. Rg7+ {[%emt 0:01:21]} Kf5 {[%emt 0:00:47]} 63. Kg2 {[%emt 0:01:05]} Ke6 {[%emt 0:00:22]} 64. Rg5 {[%emt 0:00:09]} Kd6 {[%emt 0:00:16]} 65. Rh5 {[%emt 0:00:32]} (65. Nb6 $142) 65... Ke6 $2 {[%emt 0:00:10]} (65... Kc5 {might work better.} 66. Nc3+ Kc4 67. Nxe4 Rxe3 68. Rxh4 Kd5) 66. Nf4+ $2 {[%emt 0:00:51]} (66. Kh2 $18) 66... Kd6 $16 {[%emt 0:00:15]} 67. Nd5 $2 {[%emt 0:00:11][%mdl 8192]} (67. Rh6+ $16 Kc5 68. Nd3+ (68. Rxh4 Rxe3 69. Ne6+ Kd5 $16) 68... Kb5 69. Rh5+ (69. Rxh4 Rxe3 70. Nf2 Kc4 $16) 69... Ka4 70. Nc5+ (70. Rxh4 Rxe3 71. Nf2 Kb5 $18) 70... Kb4 71. Nxe4 Rxe3 72. Rxh4) 67... Ke6 $1 $18 {[%emt 0:00:03]} 68. Nf4+ $2 {[%emt 0:00:34]} (68. Kg1 $18 {has better winning chances.}) 68... Kd6 $1 $16 {[%emt 0:00:04]} 69. Nd5 {[%emt 0:00:51]} ({Resist} 69. Rxh4 Rxe3 70. Rh7 Rb3 $16) (69. Rh6+ $16 Kc5 70. Nd3+ (70. Rxh4 Rxe3 71. Ne6+ Kd5 $16) 70... Kb5 71. Rxh4 (71. Rh5+ Ka4 $16) 71... Rxe3 72. Nf2) 1/2-1/2